fUST/lending_fUST_20250130
["ID","MTS","AMOUNT","RATE_DAILY","PERIOD"]
[350948946,1738231851544,-500.0,0.00019178,2]
[350948947,1738231851553,-500.0,0.00019178,2]
[350948948,1738231851562,-500.0,0.00019178,2]
[350948949,1738231851571,-500.0,0.00019178,2]
[350948950,1738231851579,-500.0,0.00019178,2]
[350948951,1738231851589,-503.35768479,0.00019178,2]
[350948952,1738231851598,-500.0,0.00019178,2]
[350948953,1738231851607,-500.0,0.00019178,2]
[350948954,1738231851616,-500.0,0.00019178,2]
[350948955,1738231851627,-500.0,0.00019178,2]
[350948956,1738231851639,-500.0,0.00019178,2]
[350948957,1738231851650,-500.0,0.00019178,2]
[350948958,1738231851659,-500.0,0.00019178,2]
[350948959,1738231851668,-500.0,0.00019178,2]
[350948960,1738231851677,-500.0,0.00019178,2]
[350948961,1738231851688,-500.0,0.00019178,2]
[350948962,1738231851697,-500.0,0.00019178,2]
[350948963,1738231851706,-500.0,0.00019178,2]
[350948964,1738231851716,-185.47315572,0.00019178,2]
[350948965,1738231851725,-1000.0,0.00019178,2]
[350948966,1738231851735,-1000.0,0.00019178,2]
[350948967,1738231851746,-1000.0,0.00019178,2]
[350948968,1738231851756,-1000.0,0.00019178,2]
[350948969,1738231851767,-304.78044685,0.00019178,2]
[350948970,1738231851777,-500.0,0.00019178,2]
[350948971,1738231851786,-836.07,0.00019178,2]
[350948972,1738231851795,-994.48,0.00019178,2]
[350948973,1738231851805,-751.06,0.00019178,2]
[350948974,1738231851817,-500.0,0.00019178,7]
[350948975,1738231851828,-588.16,0.00019178,2]
[350948976,1738231851837,-1377.99,0.00019178,2]
[350948977,1738231851849,-633.36,0.00019178,2]
[350948978,1738231851860,-619.8,0.00019178,2]
[350948979,1738231851871,-1852.67,0.00019178,2]
[350948980,1738231851882,-720.48,0.00019178,2]
[350948981,1738231851891,-547.19,0.00019178,2]
[350948982,1738231851901,-7043.98,0.00019178,2]
[350948983,1738231851910,-588.46,0.00019178,2]
[350948984,1738231851920,-323.50825,0.00019178,2]
[350948985,1738231851931,-165.4157407,0.00019178,2]
[350948986,1738231851941,-22989.9100067,0.00019178,11]
[350948987,1738231851951,-3214.86012311,0.00019181,2]
[350948988,1738231851962,-302.8183302,0.0001919,2]
[350948989,1738231851973,-302.8183302,0.0001919,2]
[350948990,1738231851982,-4522.49,0.000193,5]
[350948991,1738231851992,-837.5,0.000193,2]
[350948992,1738231852001,-837.5,0.000193,2]
[350948993,1738231852010,-913.17,0.00019315,2]
[350948994,1738231852019,-438.67477359,0.00019315,2]
[350948995,1738231852028,-836.07,0.00019315,2]
[350948996,1738231852037,-994.48,0.00019315,2]
[350948997,1738231852045,-751.06,0.00019315,2]
[350948998,1738231852055,-1377.99,0.00019315,2]
[350948999,1738231852064,-633.36,0.00019315,2]
[350949000,1738231852073,-619.8,0.00019315,2]
[350949001,1738231852083,-1852.67,0.00019315,2]
[350949002,1738231852092,-720.48,0.00019315,2]
[350949003,1738231852101,-547.19,0.00019315,2]
[350949004,1738231852111,-7043.98,0.00019315,2]
[350949005,1738231852120,-588.46,0.00019315,2]
[350949006,1738231852131,-302.8183302,0.0001938,2]
[350949007,1738231852141,-302.8183302,0.0001938,2]
[350949008,1738231852150,-157.02,0.000194,31]
[350949009,1738231852159,-157.02,0.000194,31]
[350949010,1738231852170,-157.02,0.000194,31]
[350949011,1738231852180,-157.02,0.000194,31]
[350949012,1738231852190,-157.02,0.000194,31]
[350949013,1738231852199,-157.02,0.000194,31]
[350949014,1738231852208,-157.02,0.000194,31]
[350949015,1738231852218,-157.02,0.000194,31]
[350949016,1738231852227,-157.02,0.000194,31]
[350949017,1738231852237,-157.02,0.000194,31]
[350949018,1738231852246,-157.02,0.000194,31]
[350949019,1738231852254,-157.02,0.000194,31]
[350949020,1738231852264,-157.02,0.000194,31]
[350949021,1738231852273,-157.02,0.000194,31]
[350949022,1738231852282,-157.02,0.000194,31]
[350949023,1738231852291,-157.02,0.000194,31]
[350949024,1738231852300,-3331.6629772,0.00019421,2]
[350949025,1738231852310,-250.0,0.00019438,2]
[350949026,1738231852320,-913.17,0.00019452,2]
[350949027,1738231852329,-836.07,0.00019452,2]
[350949028,1738231852340,-994.48,0.00019452,2]
[350949029,1738231852349,-751.06,0.00019452,2]
[350949030,1738231852358,-1377.99,0.00019452,2]
[350949031,1738231852367,-633.36,0.00019452,2]
[350949032,1738231852376,-619.8,0.00019452,2]
[350949033,1738231852386,-1852.67,0.00019452,2]
[350949034,1738231852395,-720.48,0.00019452,2]
[350949035,1738231852404,-547.19,0.00019452,2]
[350949036,1738231852414,-7043.98,0.00019452,2]
[350949037,1738231852423,-588.46,0.00019452,2]
[350949038,1738231852432,-67713.05867491,0.0001949,2]
[350949039,1738231852441,-43093.32485487,0.000195,3]
[350949040,1738231852450,-4998.84196532,0.000195,2]
[350949041,1738231852459,-1000.292927,0.000195,2]
[350949042,1738231852469,-1334.12155626,0.00019508,2]
[350949043,1738231852477,-501.40555038,0.00019521,2]
[350949044,1738231852560,-681.52895564,0.00019521,2]
[350949045,1738231852570,-1000.0,0.00019521,2]
[350949046,1738231852578,-1000.0,0.00019521,2]
[350949047,1738231852587,-1000.0,0.00019521,2]
[350949048,1738231852596,-502.44865218,0.00019521,2]
[350949049,1738231852605,-1000.0,0.00019521,2]
[350949050,1738231852614,-1000.0,0.00019521,2]
[350949051,1738231852624,-1000.0,0.00019521,2]
[350949052,1738231852632,-1085.98072345,0.00019521,2]
[350949053,1738231852642,-1000.15726111,0.0001954,4]
[350949054,1738231852651,-302.8183302,0.0001957,2]
[350949055,1738231852660,-302.8183302,0.0001957,2]
[350949056,1738231852669,-913.37023526,0.00019589,2]
[350949057,1738231852678,-836.25121486,0.00019589,2]
[350949058,1738231852688,-994.63642925,0.00019589,2]
[350949059,1738231852697,-751.19936513,0.00019589,2]
[350949060,1738231852706,-1378.01953599,0.00019589,2]
[350949061,1738231852715,-633.4999387,0.00019589,2]
[350949062,1738231852725,-619.81177504,0.00019589,2]
[350949063,1738231852734,-1852.76749048,0.00019589,2]
[350949064,1738231852744,-720.66918754,0.00019589,2]
[350949065,1738231852753,-547.27657891,0.00019589,2]
[350949066,1738231852763,-7044.05508915,0.00019589,2]
[350949067,1738231852773,-588.51028293,0.00019589,2]
[350949068,1738231852782,-62964.0,0.000196,2]
[350949069,1738231852791,-19294.28019406,0.000196,5]
[350949070,1738231852800,-587.0,0.000196,2]
[350949071,1738231852810,-1334.12155626,0.00019608,2]
[350949072,1738231852819,-395.0,0.00019612,2]
[350949073,1738231852832,-1065.8504763,0.00019652,2]
[350949074,1738231852842,-1334.12155626,0.00019708,2]
[350949075,1738231852851,-306.0,0.00019753,2]
[350949076,1738231852861,-302.8183302,0.0001976,2]
[350949077,1738231852871,-302.8183302,0.0001976,2]
[350949078,1738231852880,-3331.6629772,0.0001976,2]
[350949079,1738231852890,-835.0,0.00019769,7]
[350949080,1738231852901,-6085.0,0.000198,2]
[350949081,1738231852911,-1334.12155626,0.00019808,2]
[350949082,1738231852921,-500.0,0.00019863,9]
[350949083,1738231852931,-1600.813475,0.000199,5]
[350949084,1738231852942,-159.56539925,0.000199,2]
[350949085,1738231852951,-1334.12155626,0.00019908,2]
[350949086,1738231852961,-1000.0,0.0001992,5]
[350949087,1738231852971,-1000.0,0.0001994,5]
[350949088,1738231852983,-454.2274953,0.0001995,4]
[350949089,1738231852993,-454.2274953,0.0001995,4]
[350949090,1738231853002,-1000.0,0.0001996,5]
[350949091,1738231853011,-1000.0,0.0001998,5]
[350949092,1738231853022,-455.15371882,0.0002,2]
[350949093,1738231853031,-1000.0,0.0002,7]
[350949094,1738231853040,-160.0,0.0002,2]
[350949095,1738231853049,-1227.03318292,0.0002,2]
[350949096,1738231853058,-1000.0,0.0002,2]
[350949097,1738231853068,-10949.62649672,0.0002,2]
[350949098,1738231853077,-15486.02991518,0.0002,2]
[350949099,1738231853086,-145259.3326248,0.0002,2]
[350949100,1738231853095,-354.87211959,0.0002,2]
[350949101,1738231853105,-5193.24981165,0.0002,2]
[350949102,1738231853114,-99951.31263787,0.0002,2]
[350949103,1738231853123,-189.0,0.0002,2]
[350949104,1738231853133,-2000.0,0.0002,20]
[350949105,1738231853143,-1000.0,0.0002,20]
[350949106,1738231853152,-1429953.45905592,0.0002,2]
[350949107,1738231853162,-2249.54237311,0.0002,30]
[350949108,1738231853171,-600.0,0.0002,3]
[350949109,1738231853180,-1500.0,0.0002,2]
[350949110,1738231853190,-1500.0,0.0002,2]
[350949111,1738231853199,-1500.0,0.0002,2]
[350949112,1738231853209,-1538.71549124,0.0002,2]
[350949113,1738231853219,-53242.0,0.0002,2]
[350949114,1738231853228,-1500.0,0.0002,2]
[350949115,1738231853237,-1500.0,0.0002,2]
[350949116,1738231853247,-1500.0,0.0002,2]
[350949117,1738231853258,-1500.0,0.0002,2]
[350949118,1738231853268,-1500.0,0.0002,2]
[350949119,1738231853278,-1500.0,0.0002,2]
[350949120,1738231853287,-1500.0,0.0002,2]
[350949121,1738231853298,-1500.0,0.0002,2]
[350949122,1738231853308,-1500.0,0.0002,2]
[350949123,1738231853318,-1500.0,0.0002,2]
[350949124,1738231853327,-1500.0,0.0002,2]
[350949125,1738231853336,-1500.0,0.0002,2]
[350949126,1738231853346,-1500.0,0.0002,2]
[350949127,1738231853355,-1500.0,0.0002,2]
[350949128,1738231853365,-1500.0,0.0002,2]
[350949129,1738231853375,-1466.13355038,0.0002,2]
[350949130,1738231853384,-79743.66300236,0.0002,2]
[350949131,1738231853474,-11337.11276385,0.0002,2]
[350949132,1738231853486,-61792.38146736,0.0002,2]
[350949133,1738231885882,-500.0,0.00016438,2]
[350949134,1738231885913,-151.0,0.00016438,2]
[350949135,1738231885941,-151.0,0.00016438,2]
[350949136,1738231885968,-0.5,0.00016438,2]
[350949137,1738231924471,-160.0,0.00021171,120]
[350949138,1738231924497,-17.46,0.000213,120]
[350949140,1738232496576,187.363366,0.00013973,2]
[350949141,1738232567910,184.938302,0.00013699,2]
[350949165,1738233038192,-151.0,0.00016438,2]
[350949166,1738233038202,-164.084866,0.00016438,2]
[350949167,1738233038211,-151.0,0.00016575,2]
[350949168,1738233038221,-151.0,0.00016575,2]
[350949169,1738233038230,-151.0,0.00016575,2]
[350949170,1738233038240,-708.95,0.000166,2]
[350949171,1738233038254,-151.0,0.0001671,2]
[350949172,1738233038264,-151.0,0.0001671,2]
[350949173,1738233038274,-170.52919937,0.00016737,2]
[350949174,1738233038284,-300.0,0.00016984,2]
[350949176,1738233038295,-500.0,0.00016985,2]
[350949177,1738233038305,-500.0,0.00016985,2]
[350949178,1738233038315,-1883.06,0.00016985,2]
[350949179,1738233038327,-395.0,0.00017102,2]
[350949180,1738233038337,-500.0,0.00017122,2]
[350949181,1738233038347,-500.0,0.00017122,2]
[350949182,1738233038356,-1883.06,0.00017122,2]
[350949183,1738233038366,-4017.09526552,0.000172,2]
[350949184,1738233038375,-762.29,0.00017258,2]
[350949185,1738233038386,-500.0,0.00017258,2]
[350949186,1738233038396,-526.90165557,0.00017258,2]
[350949187,1738233038406,-500.0,0.00017259,2]
[350949188,1738233038416,-500.0,0.00017259,2]
[350949189,1738233038426,-1883.06,0.00017259,2]
[350949190,1738233038435,-22588.85893931,0.00017359,2]
[350949191,1738233038444,-1200.0,0.00017369,2]
[350949192,1738233038453,-762.29,0.00017395,2]
[350949193,1738233038464,-500.0,0.00017395,2]
[350949194,1738233038474,-500.0,0.00017396,2]
[350949195,1738233038484,-331.52,0.00017396,2]
[350949196,1738233038494,-1883.06,0.00017396,2]
[350949197,1738233038505,-2000.0,0.000175,2]
[350949198,1738233038514,-762.29,0.00017532,2]
[350949199,1738233038524,-500.0,0.00017533,2]
[350949200,1738233038534,-1883.06,0.00017533,2]
[350949201,1738233038544,-467.47224769,0.00017669,2]
[350949214,1738233040479,-294.81775231,0.00017669,2]
[350949215,1738233040491,-500.0,0.0001767,2]
[350949216,1738233040500,-1020.75498241,0.0001767,2]
[350949217,1738233040514,-862.30501759,0.0001767,2]
[350949218,1738233040523,-399.69392863,0.00017707,2]
[350949219,1738233040532,-762.29,0.00017806,2]
[350949220,1738233040541,-500.0,0.00017807,2]
[350949221,1738233040550,-1883.06,0.00017807,2]
[350949222,1738233040558,-762.29,0.00017943,2]
[350949223,1738233040568,-500.0,0.00017944,2]
[350949224,1738233040577,-1883.06,0.00017944,2]
[350949225,1738233040586,-762.29,0.0001808,2]
[350949226,1738233040597,-500.0,0.00018081,2]
[350949227,1738233040607,-1883.06,0.00018081,2]
[350949228,1738233040616,-762.29,0.00018217,2]
[350949229,1738233040626,-500.0,0.00018218,2]
[350949230,1738233040635,-1883.06,0.00018218,2]
[350949231,1738233040644,-182.986,0.00018233,2]
[350949232,1738233040654,-399.69392861,0.00018332,2]
[350949233,1738233040664,-762.29,0.00018354,2]
[350949234,1738233040673,-423.81762171,0.00018355,2]
[350949235,1738233040683,-1883.06,0.00018355,2]
[350949236,1738233040692,-762.29,0.00018491,2]
[350949237,1738233040702,-1883.06,0.00018492,2]
[350949238,1738233040712,-1844.52870569,0.000185,2]
[350949264,1738233324928,193.748633,0.00013973,2]
[350949265,1738233404196,184.799989,0.00013699,2]
[350949266,1738233946097,-1115.2967303,0.00016009,2]
[350949267,1738233946116,-237.68107349,0.00016334,2]
[350949268,1738233946136,-1540.22716924,0.00016334,2]
[350949269,1738233946156,-638.06,0.000166,2]
[350949270,1738233946176,-152.0,0.00017065,2]
[350949271,1738233946195,-395.0,0.00017199,2]
[350949272,1738233946215,-162.352042,0.00017287,2]
[350949273,1738233946235,-162.352042,0.00017293,2]
[350949274,1738233946254,-162.352042,0.00017299,2]
[350949275,1738233946273,-162.352042,0.00017305,2]
[350949276,1738233946293,-162.352042,0.00017312,2]
[350949277,1738233946311,-935.03934155,0.00017312,2]
[350949314,1738234232605,-574.25,0.000166,2]
[350949315,1738234232619,-358.737156,0.00016773,2]
[350949316,1738234232629,-162.352042,0.00017318,2]
[350949317,1738234232638,-162.352042,0.00017324,2]
[350949318,1738234232648,-162.352042,0.0001733,2]
[350949319,1738234232659,-162.352042,0.00017336,2]
[350949320,1738234232668,-162.352042,0.00017342,2]
[350949321,1738234232679,-162.352042,0.00017349,2]
[350949322,1738234232690,-162.352042,0.00017355,2]
[350949323,1738234232699,-162.352042,0.00017361,2]
[350949324,1738234232708,-162.352042,0.00017367,2]
[350949325,1738234232717,-162.352042,0.00017373,2]
[350949326,1738234232726,-245.62351999,0.00017373,2]
[350949327,1738234232735,-2000.0,0.000175,2]
[350949328,1738234232744,-1200.0,0.00017544,2]
[350949329,1738234232755,-300.0,0.00017882,2]
[350949330,1738234232764,-941.53,0.00017883,2]
[350949331,1738234232773,-500.0,0.00017883,2]
[350949332,1738234232783,-191.21568797,0.00017883,2]
[350949333,1738234232792,-151.0,0.0001794,2]
[350949334,1738234232801,-13490.973399,0.00017951,2]
[350949335,1738234232811,-1135.26431571,0.00018,2]
[350949336,1738234232820,-941.53,0.0001802,2]
[350949337,1738234232829,-500.0,0.0001802,2]
[350949338,1738234232839,-941.53,0.00018157,2]
[350949339,1738234232848,-500.0,0.00018157,2]
[350949340,1738234232857,-182.986,0.00018196,2]
[350949341,1738234232866,-941.53,0.00018294,2]
[350949342,1738234232875,-500.0,0.00018294,2]
[350949343,1738234232886,-1592.59558321,0.0001831,2]
[350949344,1738234232895,-22588.85893931,0.00018315,2]
[350949345,1738234232904,-327.73518346,0.00018411,2]
[350949346,1738234232913,-941.53,0.00018431,2]
[350949347,1738234232923,-500.0,0.00018431,2]
[350949348,1738234232932,-1830.0,0.000185,2]
[350949349,1738234232941,-153.0,0.00018511,2]
[350949350,1738234232950,-153.0,0.00018511,2]
[350949351,1738234232960,-153.0,0.00018511,2]
[350949352,1738234232969,-153.0,0.00018511,2]
[350949353,1738234232978,-153.0,0.00018511,2]
[350949354,1738234232987,-153.0,0.00018511,2]
[350949355,1738234232996,-153.0,0.00018511,2]
[350949356,1738234233006,-153.0,0.00018511,2]
[350949357,1738234233015,-153.0,0.00018511,2]
[350949358,1738234233025,-153.0,0.00018511,2]
[350949359,1738234233034,-153.0,0.00018511,2]
[350949360,1738234233044,-236.0,0.00018512,2]
[350949361,1738234233054,-236.0,0.00018512,2]
[350949362,1738234233063,-236.0,0.00018512,2]
[350949363,1738234233072,-236.0,0.00018512,2]
[350949364,1738234233082,-236.0,0.00018512,2]
[350949365,1738234233092,-236.0,0.00018512,2]
[350949366,1738234233102,-236.0,0.00018512,2]
[350949367,1738234233112,-236.0,0.00018512,2]
[350949368,1738234233122,-236.0,0.00018512,2]
[350949369,1738234233135,-236.0,0.00018512,2]
[350949370,1738234233144,-236.0,0.00018512,2]
[350949371,1738234233154,-236.0,0.00018512,2]
[350949372,1738234233164,-236.0,0.00018512,2]
[350949373,1738234233173,-153.0,0.00018514,2]
[350949374,1738234233182,-153.0,0.00018514,2]
[350949375,1738234233192,-153.0,0.00018514,2]
[350949376,1738234233201,-153.0,0.00018514,2]
[350949377,1738234233210,-153.0,0.00018514,2]
[350949378,1738234233220,-153.0,0.00018514,2]
[350949379,1738234233229,-153.0,0.00018514,2]
[350949380,1738234233239,-153.0,0.00018514,2]
[350949381,1738234233248,-153.0,0.00018514,2]
[350949382,1738234233257,-153.0,0.00018514,2]
[350949383,1738234233266,-153.0,0.00018514,2]
[350949384,1738234233276,-236.0,0.00018515,2]
[350949385,1738234233285,-236.0,0.00018515,2]
[350949386,1738234233294,-236.0,0.00018515,2]
[350949387,1738234233303,-236.0,0.00018515,2]
[350949388,1738234233313,-236.0,0.00018515,2]
[350949389,1738234233322,-207.61865028,0.00018515,2]
[350949421,1738234238140,-28.38134972,0.00018515,2]
[350949423,1738234238149,-236.0,0.00018515,2]
[350949425,1738234238159,-236.0,0.00018515,2]
[350949427,1738234238168,-236.0,0.00018515,2]
[350949429,1738234238177,-236.0,0.00018515,2]
[350949431,1738234238187,-56.17126971,0.00018515,2]
[350949433,1738234238199,-179.82873029,0.00018515,2]
[350949435,1738234238209,-236.0,0.00018515,2]
[350949437,1738234238218,-236.0,0.00018515,2]
[350949439,1738234238227,-236.0,0.00018515,2]
[350949441,1738234238237,-612.17126971,0.00018515,2]
[350949443,1738234238249,-587.82873029,0.00018515,2]
[350949445,1738234238258,-153.0,0.00018517,2]
[350949447,1738234238268,-153.0,0.00018517,2]
[350949449,1738234238278,-153.0,0.00018517,2]
[350949451,1738234238287,-153.0,0.00018517,2]
[350949453,1738234238297,-153.0,0.00018517,2]
[350949455,1738234238307,-153.0,0.00018517,2]
[350949457,1738234238316,-153.0,0.00018517,2]
[350949460,1738234238326,-236.0,0.00018518,2]
[350949463,1738234238335,-236.0,0.00018518,2]
[350949465,1738234238345,-236.0,0.00018518,2]
[350949468,1738234238354,-236.0,0.00018518,2]
[350949470,1738234238364,-236.0,0.00018518,2]
[350949472,1738234238373,-236.0,0.00018518,2]
[350949473,1738234238382,-236.0,0.00018518,2]
[350949475,1738234238391,-236.0,0.00018518,2]
[350949477,1738234238400,-236.0,0.00018518,2]
[350949479,1738234238409,-236.0,0.00018518,2]
[350949481,1738234238419,-236.0,0.00018518,2]
[350949483,1738234238428,-236.0,0.00018518,2]
[350949485,1738234238438,-236.0,0.00018518,2]
[350949487,1738234238446,-236.0,0.00018518,2]
[350949489,1738234238455,-941.53,0.00018568,2]
[350949491,1738234238465,-500.0,0.00018568,2]
[350949493,1738234238474,-165.45,0.000186,2]
[350949494,1738234238483,-941.53,0.00018705,2]
[350949496,1738234238492,-500.0,0.00018705,2]
[350949498,1738234238501,-49.15936699,0.00018842,2]
[350949522,1738234238726,-892.37063301,0.00018842,2]
[350949524,1738234238736,-500.0,0.00018842,2]
[350949526,1738234238745,-160.48557508,0.000189,2]
[350949528,1738234238757,-1991.18017289,0.000189,2]
[350949530,1738234238767,-327.73518339,0.00018937,2]
[350949532,1738234238777,-941.53,0.00018979,2]
[350949534,1738234238786,-500.0,0.00018979,2]
[350949536,1738234238795,-153.798,0.00019,2]
[350949538,1738234238805,-302.78807257,0.00019,2]
[350949540,1738234238814,-302.8183302,0.00019,2]
[350949542,1738234238824,-941.53,0.00019116,2]
[350949544,1738234238833,-500.0,0.00019116,2]
[350949546,1738234238843,-500.0,0.00019178,7]
[350949548,1738234238853,-307.332837,0.00019178,2]
[350949550,1738234238863,-302.78807257,0.0001919,2]
[350949552,1738234238873,-302.8183302,0.0001919,2]
[350949553,1738234238886,-681.67171142,0.00019212,2]
[350949556,1738234238895,-941.53,0.00019253,2]
[350949557,1738234238905,-500.0,0.00019253,2]
[350949559,1738234238914,-302.78807257,0.0001938,2]
[350949561,1738234238924,-165.45,0.0001938,2]
[350949564,1738234238935,-302.8183302,0.0001938,2]
[350949565,1738234238944,-681.67171142,0.00019384,2]
[350949567,1738234238953,-13236.49517274,0.0001939,5]
[350949569,1738234238962,-25706.87360165,0.0001939,5]
[350949571,1738234238971,-941.53,0.0001939,2]
[350949573,1738234238980,-500.0,0.0001939,2]
[350949575,1738234238989,-1267.41547844,0.00019451,2]
[350949577,1738234238998,-327.73518339,0.00019463,2]
[350949579,1738234239007,-420.0,0.00019514,2]
[350949581,1738234239016,-941.53,0.00019527,2]
[350949583,1738234239026,-500.0,0.00019527,2]
[350949585,1738234239035,-1267.41547844,0.00019551,2]
[350949587,1738234239044,-681.67171142,0.00019556,2]
[350949589,1738234239053,-302.78807257,0.0001957,2]
[350949591,1738234239062,-302.8183302,0.0001957,2]
[350949593,1738234239071,-563.65,0.0001965,2]
[350949595,1738234239080,-1267.41547844,0.00019651,2]
[350949597,1738234239089,-500.0,0.00019661,2]
[350949599,1738234239098,-500.0,0.00019661,2]
[350949601,1738234239108,-343.30411691,0.00019661,2]
[350949603,1738234239117,-500.0,0.00019661,2]
[350949605,1738234239126,-500.0,0.00019661,2]
[350949607,1738234239136,-500.0,0.00019661,2]
[350949609,1738234239145,-500.0,0.00019661,2]
[350949611,1738234239154,-507.54495686,0.00019661,2]
[350949613,1738234239164,-500.0,0.00019661,2]
[350949615,1738234239173,-507.54495686,0.00019661,2]
[350949617,1738234239182,-500.0,0.00019661,2]
[350949619,1738234239191,-267.3,0.00019661,2]
[350949621,1738234239200,-425.14984783,0.00019661,2]
[350949623,1738234239209,-500.0,0.00019661,2]
[350949625,1738234239218,-500.0,0.00019661,2]
[350949627,1738234239227,-507.54495686,0.00019661,2]
[350949629,1738234239236,-595.50784628,0.00019661,2]
[350949631,1738234239246,-500.0,0.00019661,2]
[350949633,1738234239255,-500.0,0.00019661,2]
[350949635,1738234239264,-454.2808204,0.00019661,2]
[350949637,1738234239273,-507.54495686,0.00019661,2]
[350949639,1738234239282,-491.88238605,0.00019661,2]
[350949641,1738234239291,-423.59715071,0.00019661,2]
[350949643,1738234239300,-500.0,0.00019661,2]
[350949645,1738234239309,-507.54495686,0.00019661,2]
[350949647,1738234239318,-500.0,0.00019661,2]
[350949649,1738234239327,-500.0,0.00019661,2]
[350949651,1738234239336,-507.54495686,0.00019661,2]
[350949652,1738234239345,-500.0,0.00019661,2]
[350949655,1738234239355,-500.0,0.00019661,2]
[350949657,1738234239364,-507.54495686,0.00019661,2]
[350949658,1738234239373,-507.54495686,0.00019661,2]
[350949660,1738234239383,-500.0,0.00019661,2]
[350949662,1738234239393,-507.54495686,0.00019661,2]
[350949664,1738234239402,-500.0,0.00019661,2]
[350949666,1738234239410,-507.54495686,0.00019661,2]
[350949668,1738234239420,-500.0,0.00019661,2]
[350949670,1738234239429,-507.54495686,0.00019661,2]
[350949672,1738234239438,-500.0,0.00019661,2]
[350949674,1738234239447,-507.54495686,0.00019661,2]
[350949676,1738234239457,-500.0,0.00019661,2]
[350949678,1738234239467,-507.54495686,0.00019661,2]
[350949680,1738234239477,-500.0,0.00019661,2]
[350949682,1738234239486,-507.54495686,0.00019661,2]
[350949684,1738234239496,-500.0,0.00019661,2]
[350949686,1738234239506,-507.54495686,0.00019661,2]
[350949688,1738234239515,-500.0,0.00019661,2]
[350949690,1738234239524,-507.54495686,0.00019661,2]
[350949692,1738234239534,-500.0,0.00019661,2]
[350949694,1738234239543,-500.0,0.00019661,2]
[350949696,1738234239553,-507.54495686,0.00019661,2]
[350949698,1738234239562,-500.0,0.00019661,2]
[350949700,1738234239572,-507.54495686,0.00019661,2]
[350949702,1738234239582,-500.0,0.00019661,2]
[350949704,1738234239592,-507.54495686,0.00019661,2]
[350949706,1738234239602,-500.0,0.00019661,2]
[350949708,1738234239612,-507.54495686,0.00019661,2]
[350949710,1738234239624,-500.0,0.00019661,2]
[350949712,1738234239634,-507.54495686,0.00019661,2]
[350949714,1738234239643,-500.0,0.00019661,2]
[350949716,1738234239655,-500.0,0.00019661,2]
[350949718,1738234239664,-507.54495686,0.00019661,2]
[350949720,1738234239673,-500.0,0.00019661,2]
[350949722,1738234239683,-507.54495686,0.00019661,2]
[350949724,1738234239693,-500.0,0.00019661,2]
[350949726,1738234239703,-507.54495686,0.00019661,2]
[350949728,1738234239713,-500.0,0.00019661,2]
[350949730,1738234239722,-507.54495686,0.00019661,2]
[350949732,1738234239731,-365.82537512,0.00019661,2]
[350949734,1738234239740,-507.54495686,0.00019661,2]
[350949736,1738234239750,-500.0,0.00019661,2]
[350949738,1738234239758,-507.54495686,0.00019661,2]
[350949740,1738234239767,-500.0,0.00019661,2]
[350949742,1738234239776,-507.54495686,0.00019661,2]
[350949744,1738234239785,-500.0,0.00019661,2]
[350949745,1738234239794,-507.54495686,0.00019661,2]
[350949747,1738234239803,-500.0,0.00019661,2]